bitfinex/quotes_BTCUSD_20251007
["timestamp","ask_amount","ask_price","bid_price","bid_amount"]
[1759849140062,0.00150622,122730.0,122720.0,1.32142468]
[1759849140943,0.7618615,122730.0,122720.0,0.81498262]
[1759849141154,0.7618615,122730.0,122720.0,0.24266262]
[1759849141366,0.7618615,122730.0,122720.0,0.73665]
[1759849141573,0.16446556,122730.0,122720.0,0.66861]
[1759849141775,0.7618615,122730.0,122720.0,0.68505]
[1759849141979,0.7618615,122730.0,122720.0,0.66396]
[1759849142178,1.10993024,122730.0,122720.0,0.66396]
[1759849142511,1.13338327,122730.0,122720.0,0.66296]
[1759849142712,1.12531453,122730.0,122720.0,0.6884]
[1759849142920,1.12931453,122730.0,122720.0,0.6834]
[1759849143170,0.53391859,122730.0,122720.0,0.6834]
[1759849143369,1.12731453,122730.0,122720.0,0.6824]
[1759849143737,1.13231453,122730.0,122720.0,0.71719]
[1759849145660,1.13231453,122730.0,122720.0,0.69302]
[1759849146246,1.13231453,122730.0,122720.0,0.71719]
[1759849146432,1.13231453,122730.0,122720.0,0.73675]
[1759849146864,1.13231453,122730.0,122720.0,0.71258]
[1759849147595,1.13231453,122730.0,122720.0,0.70296]
[1759849149549,1.13231453,122730.0,122720.0,0.6834]
[1759849150904,1.13231453,122730.0,122720.0,0.66696]
[1759849151119,0.53491859,122730.0,122720.0,0.6834]
[1759849151322,1.13231453,122730.0,122720.0,0.6834]
[1759849152865,1.13231453,122730.0,122720.0,0.66696]
[1759849153064,1.13231453,122730.0,122720.0,0.65796]
[1759849153480,0.53491859,122730.0,122720.0,0.65796]
[1759849153893,1.13231453,122730.0,122720.0,0.66696]
[1759849154327,0.53491859,122730.0,122720.0,0.66696]
[1759849154546,1.13231453,122730.0,122720.0,0.66696]
[1759849156712,1.13231453,122730.0,122720.0,0.6834]
[1759849158202,1.13231453,122730.0,122720.0,0.66696]
[1759849158602,1.13231453,122730.0,122720.0,0.6834]
[1759849159021,0.53491859,122730.0,122720.0,0.65796]
[1759849159307,1.13231453,122730.0,122720.0,0.6834]
[1759849159679,0.53491859,122730.0,122720.0,0.6834]
[1759849160144,1.13231453,122730.0,122720.0,0.6834]
[1759849160355,0.53491859,122730.0,122720.0,0.6834]
[1759849160580,1.13231453,122730.0,122720.0,0.66696]
[1759849160780,1.13231453,122730.0,122720.0,0.6834]
[1759849160993,0.53491859,122730.0,122720.0,0.6834]
[1759849161201,1.13231453,122730.0,122720.0,0.6834]
[1759849161411,0.53491859,122730.0,122720.0,0.6834]
[1759849161613,1.13231453,122730.0,122720.0,0.6834]
[1759849161829,0.53491859,122730.0,122720.0,0.6834]
[1759849162027,1.13231453,122730.0,122720.0,0.66696]
[1759849162234,1.13231453,122730.0,122720.0,0.6834]
[1759849162436,0.53491859,122730.0,122720.0,0.6834]
[1759849163003,1.13231453,122730.0,122720.0,0.001]
[1759849163200,1.13231453,122730.0,122720.0,0.68344]
[1759849163402,0.53491859,122730.0,122720.0,0.68344]
[1759849163845,1.13231453,122730.0,122720.0,0.68344]
[1759849164257,0.53491859,122730.0,122720.0,0.68344]
[1759849164451,1.13231453,122730.0,122720.0,0.68344]
[1759849164887,1.13231453,122730.0,122720.0,0.02644]
[1759849165062,1.13231453,122730.0,122720.0,0.68344]
[1759849166168,1.13231453,122730.0,122720.0,0.667]
[1759849166843,1.13231453,122730.0,122720.0,0.42344]
[1759849167546,0.53491859,122730.0,122720.0,0.42344]
[1759849167998,1.13231453,122730.0,122720.0,0.65696]
[1759849168693,0.53491859,122730.0,122720.0,0.6824]
[1759849169134,0.53491859,122730.0,122720.0,0.66596]
[1759849169135,1.13260482,122730.0,122720.0,0.66596]
[1759849170422,0.53491859,122730.0,122720.0,0.70515]
[1759849170627,0.53491859,122730.0,122720.0,0.82893262]
[1759849170838,0.53491859,122730.0,122720.0,0.66596]
[1759849171020,0.53491859,122730.0,122720.0,0.68208]
[1759849171380,1.13260482,122730.0,122720.0,0.68208]
[1759849171824,1.13260482,122730.0,122720.0,0.66596]
[1759849172066,0.53491859,122730.0,122720.0,0.68208]
[1759849172516,1.13260482,122730.0,122720.0,0.68208]
[1759849172939,0.53491859,122730.0,122720.0,0.84505262]
[1759849173124,1.13260482,122730.0,122720.0,0.68208]
[1759849174914,0.53491859,122730.0,122720.0,0.68208]
[1759849175117,1.13260482,122730.0,122720.0,0.68208]
[1759849175772,0.53491859,122730.0,122720.0,0.68208]
[1759849175971,1.13260482,122730.0,122720.0,0.68208]
[1759849176174,0.53491859,122730.0,122720.0,0.68208]
[1759849176518,0.53491859,122730.0,122720.0,0.43856]
[1759849176724,0.54760859,122730.0,122720.0,0.43856]
[1759849177151,1.14529482,122730.0,122720.0,0.43856]
[1759849177747,0.54760859,122730.0,122720.0,0.43856]
[1759849177964,1.14529482,122730.0,122720.0,0.67204]
[1759849178142,0.54760859,122730.0,122720.0,0.67204]
[1759849178372,1.14529482,122730.0,122720.0,0.67204]
[1759849179373,1.14529482,122730.0,122720.0,0.84435262]
[1759849179579,1.14529482,122730.0,122720.0,0.67204]
[1759849180985,0.54760859,122730.0,122720.0,0.83501262]
[1759849181189,1.14529482,122730.0,122720.0,0.83501262]
[1759849181627,0.54760859,122730.0,122720.0,0.83501262]
[1759849181779,1.14529482,122730.0,122720.0,0.84435262]
[1759849183031,0.54760859,122730.0,122720.0,0.84435262]
[1759849183255,1.14529482,122730.0,122720.0,0.81989262]
[1759849183468,1.14529482,122730.0,122720.0,0.65692]
[1759849184111,0.54760859,122730.0,122720.0,0.68137]
[1759849184309,1.14529482,122730.0,122720.0,0.65692]
[1759849184981,1.15322482,122730.0,122720.0,0.65692]
[1759849185227,1.14529482,122730.0,122720.0,0.65692]
[1759849185698,1.15322482,122730.0,122720.0,0.65692]
[1759849185938,1.14529482,122730.0,122720.0,0.65692]
[1759849187309,0.54760859,122730.0,122720.0,0.65692]
[1759849187533,0.54760859,122730.0,122720.0,0.84434262]
[1759849187745,1.14529482,122730.0,122720.0,0.68137]
[1759849188172,0.54760859,122730.0,122720.0,0.66626]
[1759849189066,0.54760859,122730.0,122720.0,0.68137]
[1759849189253,0.54760859,122730.0,122720.0,0.66626]
[1759849189495,0.54760859,122730.0,122720.0,0.65692]
[1759849189710,0.54760859,122730.0,122720.0,0.68137]
[1759849189951,0.54760859,122730.0,122720.0,0.84434262]
[1759849190373,0.54760859,122730.0,122720.0,0.18742262]
[1759849190585,0.54760859,122730.0,122720.0,0.17742262]
[1759849190803,1.14529482,122730.0,122720.0,0.82488262]
[1759849191046,1.14529482,122730.0,122720.0,0.66191]
[1759849191293,1.14529482,122730.0,122710.0,0.19602429]
[1759849191506,1.14529482,122730.0,122710.0,0.19617516]
[1759849191714,1.14529482,122730.0,122720.0,0.23336]
[1759849191896,1.14529482,122730.0,122720.0,0.6568]
[1759849192358,0.16297262,122720.0,122710.0,0.19617516]
[1759849192501,1.14553482,122730.0,122720.0,0.42344]
[1759849192718,1.16137482,122730.0,122720.0,0.42344]
[1759849193128,0.50297262,122720.0,122710.0,0.00099938]
[1759849193335,0.59455468,122720.0,122710.0,0.65779938]
[1759849193532,1.23548091,122720.0,122710.0,0.65779938]
[1759849193855,1.25147755,122720.0,122710.0,0.65879938]
[1759849194052,0.02445664,122720.0,122710.0,0.88888528]
[1759849194436,1.10715179,122730.0,122720.0,0.16297262]
[1759849194645,1.14544484,122730.0,122720.0,0.17808262]
[1759849194821,1.14144484,122730.0,122720.0,0.17808262]
[1759849195259,0.54375861,122730.0,122720.0,0.17808262]
[1759849195459,1.14144484,122730.0,122720.0,0.18742262]
[1759849195787,0.54375861,122730.0,122720.0,0.18742262]
[1759849195992,1.14144484,122730.0,122710.0,0.86282528]
[1759849196608,0.54575861,122730.0,122710.0,0.86282528]
[1759849196938,1.14644484,122730.0,122720.0,0.001]
[1759849197530,1.14144484,122730.0,122710.0,0.86282528]
[1759849197748,0.16297262,122720.0,122710.0,0.86382528]
[1759849197938,1.14544484,122730.0,122710.0,0.86382528]
[1759849198137,1.12960484,122730.0,122710.0,0.87893528]
[1759849198347,0.53191861,122730.0,122720.0,0.16297262]
[1759849198566,1.14144484,122730.0,122710.0,0.86282528]
[1759849198769,0.004,122720.0,122710.0,0.86382528]
[1759849198975,0.004,122720.0,122710.0,0.87893528]
[1759849199203,0.16697262,122720.0,122710.0,0.87893528]
[1759849199611,0.004,122720.0,122710.0,0.87893528]
[1759849200265,0.52791861,122730.0,122720.0,0.16297262]
[1759849200479,0.02495927,122730.0,122720.0,0.19721262]
[1759849200705,0.00450622,122730.0,122720.0,0.32544468]
[1759849201157,0.00050622,122730.0,122720.0,2.34749168]
[1759849201425,0.00050622,122730.0,122720.0,2.3784456]
[1759849201668,1e-08,122730.0,122720.0,2.5034456]
[1759849201901,0.0004,122750.0,122720.0,2.5034456]
[1759849201902,1e-08,122750.0,122740.0,0.50294606]
[1759849202153,1e-08,122750.0,122740.0,4.92605512]
[1759849202428,1e-08,122750.0,122740.0,5.00540512]
[1759849203109,1e-08,122750.0,122740.0,4.68744512]
[1759849203318,1e-08,122750.0,122740.0,1.34124812]
[1759849203540,1e-08,122750.0,122740.0,1.32089812]
[1759849203812,1e-08,122750.0,122740.0,0.32541812]
[1759849204054,1e-08,122750.0,122740.0,0.58049412]
[1759849204304,1e-08,122750.0,122740.0,1.57589412]
[1759849204744,0.00200001,122750.0,122740.0,1.32681812]
[1759849204960,0.00200001,122750.0,122740.0,0.49367412]
[1759849205221,1e-08,122750.0,122740.0,1.31159812]
[1759849205449,1e-08,122750.0,122740.0,0.99523606]
[1759849205669,1e-08,122750.0,122740.0,1.22147606]
[1759849206099,1e-08,122750.0,122740.0,0.45935606]
[1759849206328,1e-08,122750.0,122740.0,0.88275606]
[1759849206545,0.1629328,122750.0,122740.0,0.19233606]
[1759849206764,0.1629328,122750.0,122740.0,0.004]
[1759849206765,0.1821628,122750.0,122740.0,0.004]
[1759849206976,0.1821628,122750.0,122740.0,0.82350606]
[1759849207398,0.1791628,122750.0,122740.0,0.81950606]
[1759849207677,0.20110503,122750.0,122740.0,0.66052]
[1759849207886,0.20110503,122750.0,122740.0,0.004]
[1759849208085,1.14803126,122750.0,122740.0,0.42432]
[1759849208253,1.14803126,122750.0,122730.0,0.16295934]
[1759849208254,0.16294606,122740.0,122730.0,0.16295934]
[1759849208473,0.17717606,122740.0,122730.0,0.81947934]
[1759849208930,0.17717606,122740.0,122730.0,0.84586934]
[1759849209175,0.5248628,122750.0,122730.0,0.84586934]
[1759849209388,0.01623,122740.0,122730.0,0.84586934]
[1759849209622,0.17917606,122740.0,122730.0,0.68291]
[1759849209854,0.17917606,122740.0,122730.0,0.84586934]
[1759849210097,0.18617606,122740.0,122730.0,0.001]
[1759849210400,0.20410606,122740.0,122730.0,0.73583934]
[1759849210600,0.18617606,122740.0,122730.0,0.16395934]
[1759849210817,0.18617606,122740.0,122730.0,0.83699934]
[1759849211036,0.18917606,122740.0,122730.0,0.001]
[1759849211248,0.23155554,122740.0,122730.0,0.82047934]
[1759849211462,0.21362554,122740.0,122730.0,0.73583934]
[1759849211697,0.02623,122740.0,122730.0,0.84686934]
[1759849212881,0.18917606,122740.0,122730.0,0.65752]
[1759849213544,0.18917606,122740.0,122730.0,0.82047934]
[1759849213744,0.18968221,122740.0,122730.0,0.16395934]
[1759849213960,0.18968221,122740.0,122730.0,0.83699934]
[1759849214178,0.02673615,122740.0,122730.0,0.83699934]
[1759849214405,0.02673615,122740.0,122730.0,0.84686934]
[1759849214620,0.18968221,122740.0,122730.0,0.65752]
[1759849215048,0.78736844,122740.0,122730.0,0.33968]
[1759849215271,0.63997427,122740.0,122730.0,0.42432]
[1759849215510,1.2376605,122740.0,122730.0,0.57284]
[1759849215738,1.2376605,122740.0,122730.0,0.65748]
[1759849216168,0.63073427,122740.0,122730.0,0.65748]
[1759849216393,1.2284205,122740.0,122730.0,0.65748]
[1759849216620,0.61280427,122740.0,122730.0,0.65748]
[1759849216869,1.2104905,122740.0,122730.0,0.65748]
[1759849217718,1.2284205,122740.0,122730.0,0.65748]
[1759849218154,0.63073427,122740.0,122730.0,0.65748]
[1759849219020,0.61280427,122740.0,122730.0,0.65748]
[1759849219922,1.2104905,122740.0,122730.0,0.65748]
[1759849220133,0.63073427,122740.0,122730.0,0.82043934]
[1759849220342,0.63073427,122740.0,122730.0,0.65748]
[1759849221006,0.63073427,122740.0,122730.0,0.82043934]
[1759849221236,0.63073427,122740.0,122730.0,0.65748]
[1759849221454,1.2284205,122740.0,122730.0,0.65748]
[1759849221670,0.61280427,122740.0,122730.0,0.4591]
[1759849221879,1.2284205,122740.0,122730.0,0.4591]
[1759849222321,0.46778821,122740.0,122730.0,0.62205934]
[1759849222536,0.36673615,122740.0,122730.0,0.64733934]
[1759849222761,0.01050615,122740.0,122730.0,0.92281934]
[1759849223242,0.01050615,122740.0,122730.0,0.90359934]
[1759849223490,0.02582615,122740.0,122730.0,0.88045934]
[1759849223925,0.02582615,122740.0,122730.0,0.22393934]
[1759849224145,0.02582615,122740.0,122730.0,0.88045934]
[1759849224363,0.01050615,122740.0,122730.0,0.91344934]
[1759849224582,0.01050615,122740.0,122730.0,0.90355934]
[1759849224815,0.01050615,122740.0,122730.0,0.87355934]
[1759849225242,0.02582615,122740.0,122730.0,0.67758]
[1759849225464,0.02582615,122740.0,122730.0,0.85045934]
[1759849225682,0.01050615,122740.0,122730.0,0.88344934]
[1759849226179,0.01050615,122740.0,122730.0,0.9852114]
[1759849226397,0.01050615,122740.0,122730.0,1.7578984]
[1759849226649,0.01010082,122740.0,122730.0,1.7578984]
[1759849226965,0.00350615,122740.0,122730.0,1.7578984]
[1759849227401,0.00050615,122740.0,122730.0,0.23625934]
[1759849227611,0.00050615,122740.0,122730.0,1.23149934]
[1759849227830,0.00050615,122740.0,122730.0,1.23649934]
[1759849228041,0.00050615,122740.0,122730.0,1.24580934]
[1759849228253,0.00350615,122740.0,122730.0,1.21680934]
[1759849228515,0.00350615,122740.0,122730.0,1.23216934]
[1759849228768,0.00050615,122740.0,122730.0,1.23116934]
[1759849229040,0.00550615,122740.0,122730.0,1.23216934]
[1759849229831,0.00550615,122740.0,122730.0,1.22716934]
[1759849230347,0.00550615,122740.0,122730.0,1.23016934]
[1759849230570,0.00550615,122740.0,122730.0,1.22716934]
[1759849231255,0.00550615,122740.0,122730.0,1.22816934]
[1759849231533,0.00550615,122740.0,122730.0,3.0500314]
[1759849232287,0.00050615,122740.0,122730.0,3.0490314]
[1759849232728,0.00250615,122740.0,122730.0,3.0500314]
[1759849233620,0.00250615,122740.0,122730.0,3.0490314]
[1759849234516,0.00250615,122740.0,122730.0,3.0530314]
[1759849235629,0.00250615,122740.0,122730.0,2.5003244]
[1759849237419,0.00250615,122740.0,122730.0,2.2834294]
[1759849240342,0.00250615,122740.0,122730.0,1.2883894]
[1759849240546,0.00250615,122740.0,122730.0,1.9670554]
[1759849241648,1e-08,122750.0,122740.0,0.50294606]
[1759849241870,1e-08,122750.0,122740.0,5.88148812]
[1759849242091,0.00050611,122750.0,122740.0,5.89807812]
[1759849242340,1e-08,122750.0,122740.0,5.89807812]
[1759849242783,1e-08,122750.0,122740.0,5.95323002]
[1759849243003,1e-08,122760.0,122750.0,0.50293279]
[1759849243224,1e-08,122760.0,122750.0,5.93662675]
[1759849243451,1e-08,122760.0,122750.0,5.95321675]
[1759849244143,5.03e-05,122760.0,122750.0,5.95321675]
[1759849245002,1e-08,122760.0,122750.0,5.72121675]
[1759849245231,1e-08,122760.0,122750.0,6.71609675]
[1759849245637,1e-08,122760.0,122750.0,6.72109675]
[1759849246764,1e-08,122760.0,122750.0,5.29519075]
[1759849247388,1e-08,122760.0,122750.0,5.29515075]
[1759849247650,1e-08,122760.0,122750.0,4.30039075]
[1759849247869,1e-08,122760.0,122750.0,5.29515075]
[1759849248142,1e-08,122760.0,122750.0,4.30039075]
[1759849248364,1e-08,122760.0,122750.0,4.92243885]
[1759849248580,0.00135432,122760.0,122750.0,5.23999885]
[1759849248777,0.00135432,122760.0,122750.0,4.19511985]
[1759849248980,0.00135432,122760.0,122750.0,5.18987985]
[1759849249162,0.00135432,122760.0,122750.0,4.25601193]
[1759849249393,0.00135432,122760.0,122750.0,5.25077193]
[1759849250217,1e-08,122760.0,122750.0,5.25077193]
[1759849251005,1e-08,122760.0,122750.0,5.30592383]
[1759849252693,1e-08,122760.0,122750.0,5.30047802]
[1759849253831,1e-08,122760.0,122750.0,4.30571802]
[1759849254256,1e-08,122760.0,122750.0,5.30035802]
[1759849255216,1e-08,122760.0,122750.0,5.40035802]
[1759849256101,1e-08,122760.0,122750.0,4.40571802]
[1759849256318,1e-08,122760.0,122750.0,5.40031802]
[1759849256528,1e-08,122760.0,122750.0,5.39431802]
[1759849256733,1e-08,122760.0,122750.0,5.39931802]
[1759849256944,1e-08,122760.0,122750.0,5.40631802]
[1759849257167,0.0004,122790.0,122780.0,0.55804487]
[1759849257382,0.0004,122790.0,122780.0,5.95864693]
[1759849257383,0.00090251,122790.0,122780.0,5.95864693]
[1759849257621,0.00090251,122790.0,122780.0,6.03765693]
[1759849257847,0.00090251,122790.0,122780.0,6.86709693]
[1759849258054,0.00090251,122790.0,122780.0,6.96709693]
[1759849258281,0.0004,122820.0,122810.0,0.16285318]
[1759849258496,0.0004,122820.0,122810.0,5.56341524]
[1759849258497,0.00055069,122820.0,122810.0,5.56341524]
[1759849260923,0.00955069,122820.0,122810.0,2.16150124]
[1759849261135,0.01055069,122820.0,122810.0,1.40630024]
[1759849261343,0.00155069,122820.0,122810.0,1.82942024]
[1759849261814,0.00655069,122820.0,122810.0,1.82942024]
[1759849262020,0.00155069,122820.0,122810.0,1.82942024]
[1759849262239,0.00155069,122820.0,122810.0,1.89097253]
[1759849262472,0.00755069,122820.0,122810.0,1.88997253]
[1759849262932,0.00755069,122820.0,122810.0,1.89097253]
[1759849262933,0.01055069,122820.0,122810.0,1.89097253]
[1759849264823,0.01055069,122820.0,122810.0,1.50162153]
[1759849265091,0.01055069,122820.0,122810.0,1.58622153]
[1759849267060,0.01055069,122820.0,122810.0,0.59190153]
[1759849267557,0.01055069,122820.0,122810.0,1.58622153]
[1759849268046,0.01055069,122820.0,122810.0,1.33511918]
[1759849268297,0.01358529,122820.0,122810.0,1.33511918]
[1759849268533,0.01358529,122820.0,122810.0,1.22760318]
[1759849268778,0.01358529,122820.0,122810.0,1.21815318]
[1759849269029,0.19221521,122820.0,122810.0,0.84579318]
[1759849269256,0.19221521,122820.0,122810.0,0.83620318]
[1759849269460,0.19221521,122820.0,122810.0,0.68321]
[1759849269678,0.19221521,122820.0,122810.0,0.67335]
[1759849269889,0.19221521,122820.0,122810.0,0.65676]
[1759849270100,0.21669521,122820.0,122810.0,0.65676]
[1759849270310,0.90440116,122820.0,122810.0,0.42404]
[1759849270552,0.90440116,122820.0,122810.0,0.001]
[1759849270743,0.16286644,122800.0,122780.0,0.18073033]
[1759849271027,0.17865644,122800.0,122790.0,0.67136]
[1759849271254,0.17765644,122800.0,122790.0,0.67136]
[1759849271461,0.20213644,122800.0,122790.0,0.65576]
[1759849271673,0.21403983,122800.0,122790.0,0.65576]
[1759849271920,0.16287971,122790.0,122780.0,0.03408]
[1759849272139,0.16289297,122780.0,122760.0,0.54360274]
[1759849272354,0.16289297,122780.0,122770.0,0.6714]
[1759849272574,0.16289297,122780.0,122760.0,0.63475834]
[1759849272575,0.16290624,122770.0,122760.0,0.00986]
[1759849272781,0.16190624,122770.0,122760.0,0.66566]
[1759849273000,0.16190624,122770.0,122760.0,0.68126]
[1759849273207,0.17769624,122770.0,122760.0,0.24832]
[1759849273416,0.17769624,122770.0,122760.0,0.67190251]
[1759849273629,0.17669624,122770.0,122760.0,0.67190251]
[1759849274024,0.17669624,122770.0,122760.0,0.65630251]
[1759849274025,0.21105624,122770.0,122760.0,0.65630251]
[1759849274243,0.88888219,122770.0,122760.0,0.65630251]
[1759849274519,0.89088219,122770.0,122760.0,0.65730251]
[1759849274708,0.21305624,122770.0,122760.0,0.65730251]
[1759849274925,0.97400425,122770.0,122760.0,0.65730251]
[1759849275145,0.98330425,122770.0,122760.0,0.00150251]
[1759849275365,1.32430425,122770.0,122760.0,0.31882251]
[1759849275795,0.6272983,122770.0,122760.0,0.31882251]
[1759849276003,0.6272983,122770.0,122760.0,0.31782251]
[1759849276004,0.6351783,122770.0,122760.0,0.31782251]
[1759849276217,1.32130425,122770.0,122760.0,0.31782251]
[1759849276431,1.33030425,122770.0,122760.0,0.31882251]
[1759849276666,0.6524783,122770.0,122760.0,0.31882251]
[1759849276883,1.33030425,122770.0,122760.0,0.31882251]
[1759849277208,1.37025615,122770.0,122760.0,0.00150251]
[1759849277451,1.37025615,122770.0,122760.0,0.31882251]
[1759849277945,0.6826302,122770.0,122760.0,0.31882251]
[1759849278176,0.50990624,122770.0,122760.0,0.36850251]
[1759849278390,0.16990624,122770.0,122760.0,0.52156202]
[1759849278611,0.009,122770.0,122760.0,0.53142202]
[1759849278837,0.009,122770.0,122760.0,0.54102202]
[1759849279068,0.17190624,122770.0,122760.0,0.54102202]
[1759849279334,0.009,122770.0,122760.0,0.54102202]
[1759849279584,0.009,122770.0,122760.0,0.55024202]
[1759849279847,0.17190624,122770.0,122760.0,0.55024202]
[1759849280539,0.009,122770.0,122760.0,0.55024202]
[1759849280758,0.17190624,122770.0,122760.0,0.38732251]
[1759849280998,0.21217624,122770.0,122760.0,0.00150251]
[1759849281220,0.21217624,122770.0,122760.0,0.65746251]
[1759849281221,0.18769624,122770.0,122760.0,0.65746251]
[1759849281641,0.18769624,122770.0,122760.0,0.67306251]
[1759849281828,0.89988219,122770.0,122760.0,0.65746251]
[1759849282093,0.90918219,122770.0,122760.0,0.65746251]
[1759849282348,1.33230425,122770.0,122760.0,0.31890251]
[1759849282785,0.6451783,122770.0,122760.0,0.31890251]
[1759849282995,0.64568427,122770.0,122760.0,0.31890251]
[1759849283441,0.65498427,122770.0,122760.0,0.31890251]
[1759849283663,1.41280702,122770.0,122760.0,0.31890251]
[1759849283877,1.33281022,122770.0,122760.0,0.31890251]
[1759849284093,0.65498427,122770.0,122760.0,0.31890251]
[1759849284301,1.33281022,122770.0,122760.0,0.31890251]
[1759849284952,1.35725777,122770.0,122760.0,0.31890251]
[1759849285197,1.40616777,122770.0,122760.0,0.31890251]
[1759849285428,0.67943182,122770.0,122760.0,0.31890251]
[1759849285641,1.34795777,122770.0,122760.0,0.31890251]
[1759849285860,1.35725777,122770.0,122760.0,0.31890251]
[1759849286771,1.47720647,122770.0,122760.0,0.08614251]
[1759849287007,1.47720647,122770.0,122760.0,0.31890251]
[1759849287234,1.47720647,122770.0,122760.0,0.23426251]
[1759849287479,0.78958052,122770.0,122760.0,0.31890251]
[1759849287696,1.38740967,122770.0,122760.0,0.31890251]
[1759849288162,0.70958372,122770.0,122760.0,0.31890251]
[1759849288387,1.38740967,122770.0,122760.0,0.31890251]
[1759849289492,0.70958372,122770.0,122760.0,0.31890251]
[1759849289681,1.38740967,122770.0,122760.0,0.31890251]
[1759849289860,1.47697647,122770.0,122760.0,0.31890251]
[1759849290479,0.79915052,122770.0,122760.0,0.31890251]
[1759849290680,1.47697647,122770.0,122760.0,0.31890251]
[1759849291058,1.6438184,122770.0,122760.0,0.31890251]
[1759849291270,1.6342484,122770.0,122760.0,0.31890251]
[1759849291480,0.70958372,122770.0,122760.0,0.31890251]
[1759849291701,1.6342484,122770.0,122760.0,0.31890251]
[1759849291927,0.70958372,122770.0,122760.0,0.31890251]
[1759849292157,1.7142452,122770.0,122760.0,0.31890251]
[1759849292422,1.7238152,122770.0,122760.0,0.31890251]
[1759849292669,1.7285252,122770.0,122760.0,0.00150251]
[1759849292895,0.19309796,122740.0,122730.0,0.33864]
[1759849293118,0.27622002,122740.0,122730.0,0.42637029]
[1759849293343,1.2587047,122740.0,122730.0,0.42637029]
[1759849293568,1.2831597,122740.0,122730.0,0.42637029]
[1759849294032,1.2871597,122740.0,122730.0,0.42637029]
[1759849294482,0.37056253,122740.0,122730.0,0.42637029]
[1759849294693,1.34857792,122740.0,122730.0,0.42637029]
[1759849294927,1.35257792,122740.0,122730.0,0.42737029]
[1759849295362,1.34457792,122740.0,122730.0,0.42637029]
[1759849295611,0.36297253,122740.0,122730.0,0.42737029]
[1759849296302,0.29591312,122740.0,122730.0,0.42737029]
[1759849296513,0.29591312,122740.0,122730.0,0.45285029]
[1759849296942,0.19740106,122740.0,122730.0,0.61580963]
[1759849297155,0.19740106,122740.0,122730.0,0.45285029]
[1759849297156,0.17294606,122740.0,122730.0,0.45285029]
[1759849297585,0.18833606,122740.0,122730.0,0.45285029]
[1759849298016,0.18833606,122740.0,122730.0,0.42737029]
[1759849298231,0.18833606,122740.0,122730.0,0.44357029]
[1759849298429,0.17294606,122740.0,122730.0,0.45349029]
[1759849298627,0.17294606,122740.0,122730.0,0.45450263]
[1759849298881,0.18953606,122740.0,122730.0,0.44458263]
[1759849299606,0.18953606,122740.0,122730.0,0.45450263]
[1759849299789,0.18953606,122740.0,122730.0,0.61746197]
[1759849300069,0.01,122740.0,122730.0,0.61746197]
[1759849300286,0.01,122740.0,122730.0,0.64096197]
[1759849300736,0.01,122740.0,122730.0,0.66028197]
[1759849301166,0.17294606,122740.0,122730.0,0.66028197]
[1759849301381,0.16694606,122740.0,122730.0,0.48697263]
[1759849301831,0.18245458,122740.0,122730.0,0.45450263]
[1759849302093,1.22336132,122740.0,122730.0,0.31954263]
[1759849302329,1.59828322,122740.0,122730.0,0.31846263]
[1759849302560,1.62673775,122740.0,122730.0,0.31946263]
[1759849302996,0.70207307,122740.0,122730.0,0.31946263]
[1759849303221,0.69230307,122740.0,122730.0,0.23482263]
[1759849303464,0.69430307,122740.0,122730.0,0.31950263]
[1759849303686,0.69030307,122740.0,122730.0,0.31850263]
[1759849304124,0.69630307,122740.0,122730.0,0.31950263]
[1759849304527,0.69030307,122740.0,122730.0,0.31850263]
[1759849304752,0.70007307,122740.0,122730.0,0.31850263]
[1759849304941,0.69530307,122740.0,122730.0,0.31950263]
[1759849305441,0.69930307,122740.0,122730.0,0.31950263]
[1759849307083,0.70907307,122740.0,122730.0,0.31950263]
[1759849307827,0.69930307,122740.0,122730.0,0.31950263]
[1759849308778,0.7068839,122740.0,122730.0,0.31950263]
[1759849308999,0.676732,122740.0,122730.0,0.31950263]
[1759849309224,0.643612,122740.0,122730.0,0.31950263]
[1759849309471,0.643612,122740.0,122730.0,0.33603263]
[1759849309705,0.19840059,122740.0,122730.0,0.36945263]
[1759849309930,0.17394606,122740.0,122730.0,0.36945263]
[1759849310159,0.1188043,122740.0,122730.0,0.37942263]
[1759849310594,0.1188043,122740.0,122730.0,0.36945263]
[1759849311020,0.1353943,122740.0,122730.0,0.00106263]
[1759849311258,0.1248043,122740.0,122730.0,0.68467263]
[1759849311686,0.1645243,122740.0,122730.0,0.65822263]
[1759849312104,0.1413943,122740.0,122730.0,0.67475263]
[1759849312312,0.1248043,122740.0,122730.0,0.68467263]
[1759849312538,0.1258043,122740.0,122730.0,0.70817263]
[1759849313023,0.007,122740.0,122730.0,0.89045197]
[1759849314322,0.007,122740.0,122730.0,0.90041197]
[1759849314969,0.007,122740.0,122730.0,1.91566703]
[1759849315850,0.006,122740.0,122730.0,1.91566703]
[1759849316065,0.00084812,122760.0,122750.0,0.16293279]
[1759849316273,0.00084812,122760.0,122750.0,0.39569279]
[1759849316493,0.00084812,122760.0,122750.0,0.55804485]
[1759849316714,0.00084812,122760.0,122750.0,2.16077085]
[1759849318054,0.00184812,122760.0,122750.0,2.16377085]
[1759849318714,0.00284812,122760.0,122750.0,2.16377085]
[1759849319186,0.00084812,122760.0,122750.0,2.21592275]
[1759849319431,1e-08,122760.0,122750.0,2.31592275]
[1759849319658,1e-08,122760.0,122750.0,2.31892275]
[1759849319880,1e-08,122760.0,122750.0,2.47132275]
[1759849320345,0.06536749,122810.0,122800.0,0.16286644]
[1759849320579,0.06536749,122810.0,122800.0,4.3717015]
[1759849320804,0.0004,122820.0,122800.0,4.3717015]
[1759849320805,0.0004,122820.0,122810.0,0.16285318]
[1759849321033,0.0004,122820.0,122810.0,1.34466424]
[1759849321259,0.0004,122820.0,122810.0,0.90699124]
[1759849321477,0.00090282,122820.0,122810.0,0.90699124]
[1759849321704,0.00090282,122820.0,122810.0,0.91513787]
[1759849322196,0.00090282,122820.0,122810.0,0.99158881]
[1759849322416,0.00090282,122820.0,122810.0,0.87744318]
[1759849322633,0.00390282,122820.0,122810.0,0.87744318]
[1759849323317,0.00590282,122820.0,122810.0,0.22148318]
[1759849323552,0.18480274,122820.0,122810.0,0.01606]
[1759849323781,0.00590282,122820.0,122810.0,0.87574448]
[1759849324006,0.00590282,122820.0,122810.0,0.89468448]
[1759849324695,0.00590282,122820.0,122810.0,0.98695654]
[1759849325370,0.00590282,122820.0,122810.0,1.94438454]
[1759849325857,0.00590282,122820.0,122810.0,1.87041254]
[1759849326094,0.00590282,122820.0,122810.0,1.01831954]
[1759849326316,0.16874274,122820.0,122810.0,0.80084448]
[1759849326525,0.00893741,122820.0,122810.0,0.88548448]
[1759849327211,0.00893741,122820.0,122810.0,0.80084448]
[1759849327429,0.00893741,122820.0,122810.0,0.88548448]
[1759849329418,0.00893741,122820.0,122810.0,0.90375448]
[1759849330460,0.00893741,122820.0,122810.0,0.88548448]